fUST/lending_fUST_20240725
["ID","MTS","AMOUNT","RATE_DAILY","PERIOD"]
[333079257,1721844650293,-11304.64,0.00013698,2]
[333079258,1721844650303,-506.67141466,0.00013698,2]
[333079259,1721844650314,-1707.61,0.00013698,2]
[333079260,1721844650325,-500.0,0.00013698,2]
[333079261,1721844650336,-7166.78,0.00013698,2]
[333079262,1721844650347,-163.3583793,0.00013698,2]
[333079263,1721844650359,-500.0,0.00013698,2]
[333079264,1721844650371,-500.0,0.00013698,2]
[333079265,1721844650381,-745.48,0.00013698,2]
[333079266,1721844650394,-500.0,0.00013698,2]
[333079267,1721844650407,-2958.11,0.00013698,2]
[333079268,1721844650418,-500.0,0.00013698,2]
[333079269,1721844650428,-667.67,0.00013698,2]
[333079270,1721844650439,-500.0,0.00013698,2]
[333079271,1721844650450,-500.0,0.00013698,2]
[333079272,1721844650461,-1988.18,0.00013698,2]
[333079273,1721844650472,-505.7213515,0.00013698,2]
[333079274,1721844650483,-500.0,0.00013698,2]
[333079275,1721844650494,-651.86,0.00013698,2]
[333079276,1721844650504,-433.51979215,0.00013698,2]
[333079277,1721844650516,-1033.91,0.00013698,2]
[333079278,1721844650525,-500.0,0.00013698,2]
[333079279,1721844650535,-1242.26,0.00013698,2]
[333079280,1721844650545,-6487.66,0.00013698,2]
[333079281,1721844650554,-1410.86,0.00013698,2]
[333079282,1721844650564,-500.0,0.00013698,2]
[333079283,1721844650574,-500.0,0.00013698,2]
[333079284,1721844650584,-500.0,0.00013698,2]
[333079285,1721844650593,-2114.15,0.00013698,2]
[333079286,1721844650603,-895.22,0.00013698,2]
[333079287,1721844650613,-500.0,0.00013698,2]
[333079288,1721844650622,-1496.25,0.00013698,2]
[333079289,1721844650632,-1376.25,0.00013698,2]
[333079290,1721844650643,-500.0,0.00013698,2]
[333079291,1721844650652,-500.0,0.00013698,2]
[333079292,1721844650662,-500.0,0.00013698,2]
[333079293,1721844650671,-500.0,0.00013698,2]
[333079294,1721844650681,-2529.6,0.00013698,2]
[333079295,1721844650691,-500.0,0.00013698,2]
[333079296,1721844650701,-500.0,0.00013698,2]
[333079297,1721844650711,-500.0,0.00013698,2]
[333079298,1721844650720,-530.58,0.00013698,2]
[333079299,1721844650729,-500.0,0.00013698,2]
[333079300,1721844650739,-151.0,0.00013698,2]
[333079301,1721844650749,-151.0,0.00013698,2]
[333079302,1721844650759,-500.0,0.00013698,2]
[333079303,1721844650771,-151.0,0.00013698,2]
[333079304,1721844650781,-151.0,0.00013698,2]
[333079305,1721844650791,-151.0,0.00013698,2]
[333079306,1721844650800,-151.0,0.00013698,2]
[333079307,1721844650810,-1321.95,0.00013698,2]
[333079308,1721844650821,-500.0,0.00013698,2]
[333079309,1721844650832,-151.0,0.00013698,2]
[333079310,1721844650844,-237.612925,0.00013698,2]
[333079311,1721844650856,-500.0,0.00013698,2]
[333079312,1721844650868,-500.000001,0.00013698,2]
[333079313,1721844650878,-1512.01,0.00013698,2]
[333079314,1721844650888,-500.0,0.00013698,2]
[333079315,1721844650899,-11383.67,0.00013698,2]
[333079316,1721844650908,-500.0,0.00013698,2]
[333079317,1721844650918,-500.0,0.00013698,2]
[333079318,1721844650929,-500.0,0.00013698,2]
[333079319,1721844650939,-500.0,0.00013698,2]
[333079320,1721844650949,-501.73,0.00013698,2]
[333079321,1721844650959,-4699.12,0.00013698,2]
[333079322,1721844650968,-2549.73,0.00013698,2]
[333079323,1721844650978,-4782.05,0.00013698,2]
[333079324,1721844650988,-500.0,0.00013698,2]
[333079325,1721844650998,-500.0,0.00013698,2]
[333079326,1721844651011,-221.560077,0.00013698,2]
[333079327,1721844651024,-500.0,0.00013698,2]
[333079328,1721844651035,-650.72553641,0.00013698,2]
[333079329,1721844651045,-500.0,0.00013698,2]
[333079330,1721844651055,-500.0,0.00013698,2]
[333079331,1721844651066,-688.80142359,0.00013698,2]
[333079332,1721844651076,-500.0,0.00013698,2]
[333079333,1721844651085,-633.364772,0.00013698,2]
[333079334,1721844651095,-688.80142359,0.00013698,2]
[333079335,1721844651105,-500.0,0.00013698,2]
[333079336,1721844651114,-500.0,0.00013698,2]
[333079337,1721844651124,-688.80142359,0.00013698,2]
[333079338,1721844651134,-500.0,0.00013698,2]
[333079339,1721844651143,-500.0,0.00013698,2]
[333079340,1721844651153,-500.0,0.00013698,2]
[333079341,1721844651163,-500.0,0.00013698,2]
[333079342,1721844651173,-688.80142359,0.00013698,2]
[333079343,1721844651183,-500.0,0.00013698,2]
[333079344,1721844651193,-688.80142359,0.00013698,2]
[333079345,1721844651203,-688.80142359,0.00013698,2]
[333079346,1721844651213,-500.0,0.00013698,2]
[333079347,1721844651223,-500.0,0.00013698,2]
[333079348,1721844651234,-688.80142359,0.00013698,2]
[333079349,1721844651244,-335.92094803,0.00013698,2]
[333079350,1721844651256,-500.0,0.00013698,2]
[333079351,1721844651267,-500.0,0.00013698,2]
[333079352,1721844651278,-500.0,0.00013698,2]
[333079353,1721844651289,-157.14943285,0.00013698,2]
[333079354,1721844651299,-500.0,0.00013698,2]
[333079355,1721844651309,-500.0,0.00013698,2]
[333079356,1721844651319,-500.0,0.00013698,2]
[333079357,1721844651329,-485.68009819,0.00013698,2]
[333079358,1721844651339,-500.0,0.00013698,2]
[333079359,1721844651349,-500.0,0.00013698,2]
[333079360,1721844651359,-500.0,0.00013698,2]
[333079361,1721844651369,-504.3622422,0.00013698,2]
[333079362,1721844651379,-500.0,0.00013698,2]
[333079363,1721844651389,-500.0,0.00013698,2]
[333079364,1721844651398,-500.0,0.00013698,2]
[333079365,1721844651407,-500.0,0.00013698,2]
[333079366,1721844651417,-500.0,0.00013698,2]
[333079367,1721844651428,-500.0,0.00013698,2]
[333079368,1721844651439,-500.0,0.00013698,2]
[333079369,1721844651452,-562.05797503,0.00013698,2]
[333079370,1721844651461,-500.0,0.00013698,2]
[333079371,1721844651471,-500.0,0.00013698,2]
[333079372,1721844651480,-500.0,0.00013698,2]
[333079373,1721844651490,-639.76240148,0.00013698,2]
[333079374,1721844651499,-500.0,0.00013698,2]
[333079375,1721844651509,-500.0,0.00013698,2]
[333079376,1721844651519,-411.79122617,0.00013698,2]
[333079377,1721844651529,-500.0,0.00013698,2]
[333079378,1721844651539,-500.0,0.00013698,2]
[333079379,1721844651549,-500.0,0.00013698,2]
[333079380,1721844651558,-500.0,0.00013698,2]
[333079381,1721844651568,-500.0,0.00013698,2]
[333079382,1721844651578,-500.0,0.00013698,2]
[333079383,1721844651588,-500.0,0.00013698,2]
[333079384,1721844651597,-500.0,0.00013698,2]
[333079385,1721844651608,-500.0,0.00013698,2]
[333079386,1721844651618,-500.0,0.00013698,2]
[333079387,1721844651629,-500.0,0.00013698,2]
[333079388,1721844651639,-500.0,0.00013698,2]
[333079389,1721844651649,-500.0,0.00013698,2]
[333079390,1721844651660,-500.0,0.00013698,2]
[333079391,1721844651670,-500.0,0.00013698,2]
[333079392,1721844651680,-500.0,0.00013698,2]
[333079393,1721844651690,-500.0,0.00013698,2]
[333079394,1721844651701,-500.0,0.00013698,2]
[333079395,1721844651713,-500.0,0.00013698,2]
[333079396,1721844651723,-500.0,0.00013698,2]
[333079397,1721844651734,-500.0,0.00013698,2]
[333079398,1721844651745,-500.0,0.00013698,2]
[333079399,1721844651755,-500.0,0.00013698,2]
[333079400,1721844651764,-500.0,0.00013698,2]
[333079401,1721844651775,-500.0,0.00013698,2]
[333079402,1721844651785,-500.0,0.00013698,2]
[333079403,1721844651795,-500.0,0.00013698,2]
[333079404,1721844651804,-1800.69,0.00013698,2]
[333079405,1721844651814,-500.0,0.00013698,2]
[333079406,1721844651823,-500.0,0.00013698,2]
[333079407,1721844651832,-500.0,0.00013698,2]
[333079408,1721844651842,-500.0,0.00013698,2]
[333079409,1721844651855,-500.0,0.00013698,2]
[333079410,1721844651865,-500.0,0.00013698,2]
[333079411,1721844651875,-500.0,0.00013698,2]
[333079412,1721844651886,-500.0,0.00013698,2]
[333079413,1721844651897,-500.0,0.00013698,2]
[333079414,1721844651907,-500.0,0.00013698,2]
[333079415,1721844651917,-1104.97,0.00013698,2]
[333079416,1721844651926,-500.0,0.00013698,2]
[333079417,1721844651936,-500.0,0.00013698,2]
[333079418,1721844651947,-388.6662873,0.00013698,2]
[333079419,1721844651956,-500.0,0.00013698,2]
[333079420,1721844652111,-500.0,0.00013698,2]
[333079421,1721844652122,-500.0,0.00013698,2]
[333079422,1721844652132,-500.0,0.00013698,2]
[333079423,1721844652141,-1544.55,0.00013698,2]
[333079424,1721844652151,-2458.24,0.00013698,2]
[333079425,1721844652160,-504.55868606,0.00013698,2]
[333079426,1721844652170,-323.39284,0.00013699,2]
[333079427,1721844652179,-397.756453,0.00013699,2]
[333079428,1721844652189,-397.756453,0.00013699,2]
[333079429,1721844652200,-397.756453,0.00013699,2]
[333079430,1721844652209,-397.756453,0.00013699,2]
[333079431,1721844652219,-397.756453,0.00013699,2]
[333079432,1721844652229,-397.756453,0.00013699,2]
[333079433,1721844652238,-397.756453,0.00013699,2]
[333079434,1721844652247,-397.756453,0.00013699,2]
[333079435,1721844652257,-397.756453,0.00013699,2]
[333079436,1721844652266,-397.756453,0.00013699,2]
[333079437,1721844652275,-397.756453,0.00013699,2]
[333079438,1721844652284,-397.756453,0.00013699,2]
[333079439,1721844652294,-397.756453,0.00013699,2]
[333079440,1721844652304,-397.756453,0.00013699,2]
[333079441,1721844652313,-397.756453,0.00013699,2]
[333079442,1721844652323,-397.756453,0.00013699,2]
[333079443,1721844652332,-397.756453,0.00013699,2]
[333079444,1721844652342,-397.756453,0.00013699,2]
[333079445,1721844652351,-397.756453,0.00013699,2]
[333079446,1721844652361,-397.756451,0.00013699,2]
[333079447,1721844652370,-406.2236637,0.00013699,2]
[333079448,1721844652380,-635.526591,0.00013699,2]
[333079449,1721844652390,-635.526591,0.00013699,2]
[333079450,1721844652400,-635.526591,0.00013699,2]
[333079451,1721844652410,-635.526591,0.00013699,2]
[333079452,1721844652419,-635.526591,0.00013699,2]
[333079453,1721844652429,-635.526591,0.00013699,2]
[333079454,1721844652438,-635.526591,0.00013699,2]
[333079455,1721844652449,-635.526591,0.00013699,2]
[333079456,1721844652459,-635.526591,0.00013699,2]
[333079457,1721844652468,-635.526591,0.00013699,2]
[333079458,1721844652478,-635.526591,0.00013699,2]
[333079459,1721844652487,-635.526591,0.00013699,2]
[333079460,1721844652497,-635.526591,0.00013699,2]
[333079461,1721844652506,-635.526591,0.00013699,2]
[333079462,1721844652516,-635.526591,0.00013699,2]
[333079463,1721844652526,-635.526591,0.00013699,2]
[333079464,1721844652535,-635.526591,0.00013699,2]
[333079465,1721844652545,-635.526591,0.00013699,2]
[333079466,1721844652555,-635.526591,0.00013699,2]
[333079467,1721844652564,-635.526592,0.00013699,2]
[333079468,1721844652573,-3000.0,0.00013699,2]
[333079469,1721844652583,-2034.796542,0.00013699,2]
[333079470,1721844652593,-260.943952,0.00013699,2]
[333079471,1721844652602,-260.943952,0.00013699,2]
[333079472,1721844652612,-260.943952,0.00013699,2]
[333079473,1721844652621,-260.943952,0.00013699,2]
[333079474,1721844652630,-260.943952,0.00013699,2]
[333079475,1721844652640,-260.943952,0.00013699,2]
[333079476,1721844652649,-260.943952,0.00013699,2]
[333079477,1721844652659,-260.943952,0.00013699,2]
[333079478,1721844652668,-260.943952,0.00013699,2]
[333079479,1721844652678,-260.943952,0.00013699,2]
[333079480,1721844652687,-260.943952,0.00013699,2]
[333079481,1721844652697,-260.943952,0.00013699,2]
[333079482,1721844652708,-260.943952,0.00013699,2]
[333079483,1721844652717,-260.943952,0.00013699,2]
[333079484,1721844652726,-260.943952,0.00013699,2]
[333079485,1721844652736,-260.943952,0.00013699,2]
[333079486,1721844652746,-260.943952,0.00013699,2]
[333079487,1721844652755,-260.943952,0.00013699,2]
[333079488,1721844652765,-260.943952,0.00013699,2]
[333079489,1721844652775,-260.94395,0.00013699,2]
[333079490,1721844652784,-1000.0,0.00013699,2]
[333079491,1721844652793,-1000.0,0.00013699,2]
[333079492,1721844652803,-1000.0,0.00013699,2]
[333079493,1721844652812,-1000.0,0.00013699,2]
[333079494,1721844652822,-1000.0,0.00013699,2]
[333079495,1721844652831,-1000.002061,0.00013699,2]
[333079496,1721844652841,-150.112233,0.000137,2]
[333079497,1721844652854,-150.112233,0.000137,2]
[333079498,1721844652863,-150.112233,0.000137,2]
[333079499,1721844652873,-150.112233,0.000137,2]
[333079500,1721844652883,-150.112233,0.000137,2]
[333079501,1721844652894,-150.112233,0.000138,2]
[333079502,1721844652903,-150.112233,0.000138,2]
[333079503,1721844652913,-150.112233,0.000138,2]
[333079504,1721844652923,-150.112233,0.000138,2]
[333079505,1721844652932,-5968.09852148,0.000139,2]
[333079506,1721844652942,-150.112233,0.000139,2]
[333079507,1721844652953,-150.112233,0.000139,2]
[333079508,1721844652962,-51.84686356,0.000139,2]
[333079513,1721844737987,253.13368046,9.999e-05,2]
[333079514,1721844746851,4667.18681201,0.00025,120]
[333079531,1721845457162,850.24,7.25e-05,2]
[333079532,1721845639157,-848.60176643,9.999e-05,2]
[333079533,1721845639181,-200.0,0.0001,2]
[333079534,1721845639205,-437.6322586,0.0001137,2]
[333079535,1721845639228,-250.0,0.00012668,2]
[333079536,1721845639251,-1000.0,0.00013,4]
[333079537,1721845639273,-200.0,0.00013425,2]
[333079538,1721845639295,-1043.51711571,0.00013588,2]
[333079539,1721845639317,-150.112233,0.000136,2]
[333079540,1721845639339,-14.7314957,0.00013613,2]
[333079541,1721845649121,-826.07790745,0.00013613,2]
[333079542,1721845649147,-300.0,0.00013649,2]
[333079543,1721845649169,-1092.20976341,0.0001365,2]
[333079544,1721845652106,-3183.06493112,0.0001365,2]
[333079545,1721845652138,-1097.301296,0.0001365,2]
[333079554,1721845748129,-316.19049459,8.79e-05,2]
[333079555,1721845748153,-200.0,8.79e-05,2]
[333079556,1721845748178,-400.0,0.0001016,2]
[333079558,1721845795192,198.99667155,0.0001016,2]
[333079559,1721845804618,154.57491897,0.0001016,2]
[333079560,1721845805869,1138.90791489,0.0001016,2]
[333079561,1721845805891,2.42204476,0.0001016,2]
[333079649,1721845838177,-1559.74814647,0.000135,2]
[333079651,1721845838190,-913.07747622,0.00013588,2]
[333079653,1721845838200,-17754.39295881,0.0001365,2]
[333079676,1721845840517,-2224.83835072,0.0001365,2]
[333079707,1721845846443,-500.0,0.0001365,2]
[333079709,1721845869614,154.63659167,0.00012315,2]
[333079766,1721846738200,-343.05691545,9.999e-05,2]
[333079767,1721846738221,-19.37832769,0.00012315,2]
[333079770,1721846826118,-166.71873887,9.999e-05,2]
[333079771,1721846826142,-185.4750448,9.999e-05,2]
[333079772,1721846826166,-392.40605053,9.999e-05,2]
[333079773,1721846826188,-200.0,0.0001,2]
[333079774,1721846826213,-400.0,0.0001137,2]
[333079775,1721846826238,-300.0,0.00012314,2]
[333079776,1721846826261,-1628.53317735,0.00012315,2]
[333079777,1721846833112,-2411.45658419,0.00012315,2]
[333079778,1721846833133,-154.60575532,0.00012315,2]
[333079779,1721846833154,-170.96423346,0.00012315,2]
[333079780,1721846833176,-164.22475,0.00012791,2]
[333079781,1721846833199,-184.253258,0.00012936,2]
[333079782,1721846833221,-177.31939,0.00012936,2]
[333079783,1721846833246,-19.56752601,0.00013014,2]
[333079784,1721846844106,-144.65722399,0.00013014,2]
[333079785,1721846844130,-600.0,0.00013147,2]
[333079786,1721846844152,-228.7658224,0.00013178,2]
[333079787,1721846844176,-164.22475,0.00013236,2]
[333079788,1721846844198,-1547.26085332,0.00013397,2]
[333079790,1721846848144,-1900.60357129,0.00013397,2]
[333079791,1721846848166,-200.0,0.00013425,2]
[333079792,1721846848190,-164.22475,0.00013458,2]
[333079793,1721846848213,-153.0,0.00013475,2]
[333079794,1721846848235,-565.82912981,0.00013588,2]
[333079795,1721846848258,-565.82912979,0.00013591,2]
[333079796,1721846848281,-463.0990248,0.00013593,2]
[333079797,1721846949128,-199.42619197,9.899e-05,2]
[333079798,1721846949154,-200.0,9.9e-05,2]
[333079799,1721846949176,-199.42619197,9.999e-05,2]
[333079800,1721846949201,-400.0,0.0001127,2]
[333079801,1721846957213,233.34481287,9.9e-05,2]
[333079806,1721847010908,154.59033561,9.9e-05,2]
[333079807,1721847014841,200.0,0.0001,2]
[333079808,1721847014890,273.02689097,0.0001137,2]
[333079859,1721847032488,-157.648142,0.00012712,2]
[333079861,1721847032501,-157.648142,0.00012822,2]
[333079863,1721847032511,-157.648142,0.00012933,2]
[333079865,1721847032521,-157.648142,0.00013043,2]
[333079867,1721847032531,-157.648142,0.00013153,2]
[333079869,1721847032542,-157.648142,0.00013264,2]
[333079871,1721847032552,-157.648142,0.00013374,2]
[333079873,1721847032562,-246.87767293,0.00013588,2]
[333079875,1721847032572,-246.87767291,0.00013591,2]
[333079877,1721847032581,-894.42845605,0.00013593,2]
[333079879,1721847032591,-246.87767291,0.00013593,2]
[333079881,1721847032601,-246.87767291,0.00013596,2]
[333079883,1721847032610,-246.87767291,0.00013598,2]
[333079885,1721847032622,-200.0,0.00013599,2]
[333079887,1721847032633,-153.0,0.00013639,2]
[333079890,1721847032646,-153.0,0.00013639,2]
[333079893,1721847032655,-856.05091758,0.00013646,2]
[333079896,1721847032664,-23266.27226135,0.0001365,2]
[333079899,1721847032677,-652.22951312,0.0001365,2]
[333079901,1721847032689,-4255.13798104,0.0001365,2]
[333080030,1721847038486,-25974.55294443,0.0001365,2]
[333080031,1721847038495,-16843.51692873,0.00013688,2]
[333080032,1721847038511,-898.78971019,0.00013688,2]
[333080033,1721847038523,-1796.21426784,0.00013688,2]
[333080034,1721847038540,-17873.38670729,0.00013688,2]
[333080035,1721847038551,-12412.605222,0.00013688,2]
[333080036,1721847038562,-34979.01739435,0.00013688,2]
[333080037,1721847038571,-9422.61447004,0.00013689,2]
[333080038,1721847038581,-2237.98040343,0.00013693,2]
[333080040,1721847038591,-151.959013,0.00013698,2]
[333080042,1721847038600,-500.0,0.00013698,2]
[333080044,1721847038609,-500.0,0.00013698,2]
[333080046,1721847038621,-500.0,0.00013698,2]
[333080048,1721847038631,-500.0,0.00013698,2]
[333080050,1721847038641,-151.0,0.00013698,2]
[333080052,1721847038650,-158.020548,0.00013698,2]
[333080054,1721847038659,-500.57129976,0.00013698,2]
[333080056,1721847038669,-500.0,0.00013698,2]
[333080058,1721847038679,-500.0,0.00013698,2]
[333080060,1721847038689,-502.31498446,0.00013698,2]
[333080062,1721847038699,-500.0,0.00013698,2]
[333080065,1721847038711,-500.0,0.00013698,2]
[333080067,1721847038723,-500.0,0.00013698,2]
[333080069,1721847038734,-500.0,0.00013698,2]
[333080071,1721847038745,-500.0,0.00013698,2]
[333080073,1721847038756,-500.0,0.00013698,2]
[333080075,1721847038765,-500.0,0.00013698,2]
[333080077,1721847038774,-500.0,0.00013698,2]
[333080079,1721847038784,-500.0,0.00013698,2]
[333080081,1721847038794,-500.0,0.00013698,2]
[333080083,1721847038806,-500.0,0.00013698,2]
[333080085,1721847038816,-411.3559246,0.00013698,2]
[333080087,1721847038826,-500.0,0.00013698,2]
[333080089,1721847038838,-500.0,0.00013698,2]
[333080091,1721847038848,-500.0,0.00013698,2]
[333080093,1721847038859,-151.0,0.00013698,2]
[333080095,1721847038870,-151.0,0.00013698,2]
[333080097,1721847038879,-151.0,0.00013698,2]
[333080098,1721847038891,-151.0,0.00013698,2]
[333080099,1721847038902,-151.0,0.00013698,2]
[333080100,1721847038915,-151.0,0.00013698,2]
[333080101,1721847038924,-151.0,0.00013698,2]
[333080102,1721847038935,-151.0,0.00013698,2]
[333080103,1721847038948,-151.0,0.00013698,2]
[333080104,1721847038960,-151.0,0.00013698,2]
[333080105,1721847038971,-151.0,0.00013698,2]
[333080106,1721847038980,-193.256984,0.00013698,2]
[333080107,1721847038992,-500.0,0.00013698,2]
[333080108,1721847039006,-500.0,0.00013698,2]
[333080109,1721847039019,-500.0,0.00013698,2]
[333080110,1721847039030,-500.0,0.00013698,2]
[333080111,1721847039042,-500.0,0.00013698,2]
[333080112,1721847039054,-500.0,0.00013698,2]
[333080113,1721847039065,-500.0,0.00013698,2]
[333080114,1721847039075,-488.59552143,0.00013698,2]
[333080115,1721847039084,-500.0,0.00013698,2]
[333080116,1721847039093,-500.0,0.00013698,2]
[333080117,1721847039103,-691.28,0.00013698,2]
[333080118,1721847039113,-500.0,0.00013698,2]
[333080119,1721847039123,-500.0,0.00013698,2]
[333080120,1721847039135,-500.0,0.00013698,2]
[333080121,1721847039145,-500.0,0.00013698,2]
[333080122,1721847039154,-500.0,0.00013698,2]
[333080123,1721847039165,-500.0,0.00013698,2]
[333080124,1721847039174,-501.61,0.00013698,2]
[333080125,1721847039184,-1395.41,0.00013698,2]
[333080126,1721847039193,-500.0,0.00013698,2]
[333080127,1721847039202,-500.0,0.00013698,2]
[333080128,1721847039212,-287.80781033,0.00013698,2]
[333080129,1721847039221,-1247.94,0.00013698,2]
[333080130,1721847039231,-283.166993,0.00013698,2]
[333080131,1721847039240,-151.0,0.00013698,2]
[333080132,1721847039251,-383.67073235,0.00013698,2]
[333080133,1721847039261,-151.0,0.00013698,2]
[333080134,1721847039270,-151.0,0.00013698,2]
[333080135,1721847039280,-500.0,0.00013698,2]
[333080136,1721847039290,-151.0,0.00013698,2]
[333080137,1721847039300,-151.0,0.00013698,2]
[333080138,1721847039309,-500.0,0.00013698,2]
[333080139,1721847039319,-500.0,0.00013698,2]
[333080140,1721847039329,-500.0,0.00013698,2]
[333080141,1721847039340,-292.51694039,0.00013698,2]
[333080142,1721847039349,-500.0,0.00013698,2]
[333080143,1721847039360,-501.66,0.00013698,2]
[333080144,1721847039370,-500.0,0.00013698,2]
[333080145,1721847039379,-500.0,0.00013698,2]
[333080146,1721847039389,-2456.17,0.00013698,2]
[333080147,1721847039399,-1501.42,0.00013698,2]
[333080148,1721847039409,-521.02,0.00013698,2]
[333080149,1721847039418,-500.0,0.00013698,2]
[333080150,1721847039429,-500.0,0.00013698,2]
[333080151,1721847039441,-500.0,0.00013698,2]
[333080152,1721847039451,-500.0,0.00013698,2]
[333080153,1721847039461,-503.69,0.00013698,2]
[333080154,1721847039472,-500.0,0.00013698,2]
[333080155,1721847039481,-240.65608269,0.00013698,2]
[333080156,1721847039490,-500.0,0.00013698,2]
[333080157,1721847039501,-3171.16,0.00013698,2]
[333080158,1721847039512,-500.0,0.00013698,2]
[333080159,1721847039521,-500.0,0.00013698,2]
[333080160,1721847039530,-533.92,0.00013698,2]
[333080161,1721847039540,-500.0,0.00013698,2]
[333080162,1721847039551,-680.09,0.00013698,2]
[333080163,1721847039561,-500.0,0.00013698,2]
[333080164,1721847039570,-500.0,0.00013698,2]
[333080165,1721847039581,-500.0,0.00013698,2]
[333080166,1721847039590,-500.0,0.00013698,2]
[333080167,1721847039600,-510.73957969,0.00013698,2]
[333080168,1721847039611,-1722.89,0.00013698,2]
[333080169,1721847039624,-649.81,0.00013698,2]
[333080170,1721847039635,-500.0,0.00013698,2]
[333080171,1721847039645,-1122.43,0.00013698,2]
[333080172,1721847039656,-500.0,0.00013698,2]
[333080173,1721847039666,-178.99459703,0.00013698,2]
[333080174,1721847039675,-1228.62,0.00013698,2]
[333080175,1721847039685,-500.0,0.00013698,2]
[333080176,1721847039695,-500.0,0.00013698,2]
[333080177,1721847039704,-500.0,0.00013698,2]
[333080178,1721847039713,-500.0,0.00013698,2]
[333080179,1721847039723,-500.0,0.00013698,2]
[333080180,1721847039732,-1428.88,0.00013698,2]
[333080181,1721847039741,-171.17220993,0.00013698,2]
[333080182,1721847039752,-500.0,0.00013698,2]
[333080183,1721847039761,-500.0,0.00013698,2]
[333080184,1721847039771,-500.0,0.00013698,2]
[333080185,1721847039780,-500.0,0.00013698,2]
[333080186,1721847039790,-500.0,0.00013698,2]
[333080187,1721847039800,-527.21,0.00013698,2]
[333080188,1721847039809,-500.0,0.00013698,2]
[333080189,1721847039819,-500.0,0.00013698,2]
[333080190,1721847039829,-725.75,0.00013698,2]
[333080191,1721847039841,-502.71235514,0.00013698,2]
[333080192,1721847039851,-1903.78,0.00013698,2]
[333080193,1721847039862,-676.62,0.00013698,2]
[333080194,1721847039874,-500.0,0.00013698,2]
[333080195,1721847039884,-1159.26,0.00013698,2]
[333080196,1721847039893,-508.72670725,0.00013698,2]
[333080197,1721847039902,-500.0,0.00013698,2]
[333080198,1721847039911,-500.0,0.00013698,2]
[333080199,1721847039920,-1728.61,0.00013698,2]
[333080200,1721847039929,-500.0,0.00013698,2]
[333080201,1721847039939,-151.0,0.00013698,2]
[333080202,1721847039949,-151.0,0.00013698,2]
[333080203,1721847039958,-151.0,0.00013698,2]
[333080204,1721847039969,-500.0,0.00013698,2]
[333080205,1721847039978,-500.0,0.00013698,2]
[333080206,1721847039988,-500.0,0.00013698,2]
[333080207,1721847039997,-500.0,0.00013698,2]
[333080208,1721847040009,-1586.5,0.00013698,2]
[333080209,1721847040019,-500.0,0.00013698,2]
[333080210,1721847040028,-500.0,0.00013698,2]
[333080211,1721847040039,-500.0,0.00013698,2]
[333080212,1721847040048,-670.02,0.00013698,2]
[333080213,1721847040060,-500.0,0.00013698,2]
[333080214,1721847040071,-500.0,0.00013698,2]
[333080215,1721847040081,-544.59,0.00013698,2]
[333080216,1721847040091,-500.0,0.00013698,2]
[333080217,1721847040101,-500.0,0.00013698,2]
[333080218,1721847040111,-500.0,0.00013698,2]
[333080219,1721847040123,-743.42,0.00013698,2]
[333080220,1721847040135,-813.48,0.00013698,2]
[333080221,1721847040145,-500.0,0.00013698,2]